bitfinex-derivatives/quotes_ETHF0:USTF0_20251012
["timestamp","ask_amount","ask_price","bid_price","bid_amount"]
[1760276863499,1.176,3804.4,3804.3,0.47305]
[1760276863704,50.58650733,3804.5,3804.3,0.47305]
[1760276863705,46.74959134,3804.5,3804.4,1.1814]
[1760276863900,45.18575298,3804.5,3804.3,0.47305]
[1760276864097,40.80195298,3804.5,3804.4,1.1814]
[1760276864706,40.80195298,3804.5,3804.3,0.47305]
[1760276864900,40.80195298,3804.5,3804.4,1.1814]
[1760276865796,1.1133,3804.4,3804.3,0.47305]
[1760276866293,4.05212309,3804.4,3804.3,0.47305]
[1760276867407,40.80195298,3804.5,3804.3,1.65815]
[1760276867599,41.91525298,3804.5,3804.3,0.47305]
[1760276867793,40.80195298,3804.5,3804.3,0.47305]
[1760276868102,40.80195298,3804.5,3804.4,1.1851]
[1760276868400,2.91454692,3804.4,3804.3,0.47305]
[1760276868600,43.7164999,3804.5,3804.3,1.65815]
[1760276868801,40.80195298,3804.5,3804.3,1.65815]
[1760276869108,1.1133,3804.3,3804.1,3.2078]
[1760276869303,6.4613232,3804.4,3804.1,3.2078]
[1760276869603,1.1133,3804.1,3803.6,3.2078]
[1760276869804,6.23404035,3804.3,3804.1,0.47307]
[1760276870001,3.65215298,3804.5,3804.1,0.47307]
[1760276870201,0.4424,3804.0,3803.9,0.47309]
[1760276870398,1.5557,3804.0,3803.9,0.47309]
[1760276870594,7.70270307,3804.0,3803.9,0.47309]
[1760276870799,11.58940307,3804.0,3803.6,3.2078]
[1760276870999,1.1133,3803.9,3803.8,0.47311]
[1760276871202,41.9133,3803.9,3803.6,3.68093]
[1760276871404,1.1133,3803.8,3803.7,0.47312]
[1760276871807,7.25800947,3803.8,3803.7,0.47312]
[1760276871999,48.05800947,3803.8,3803.7,0.47312]
[1760276872400,40.8,3803.8,3803.7,1.65822]
[1760276872603,0.00195298,3804.5,3804.4,1.65814]
[1760276873100,3.2078,3805.8,3805.7,0.47287]
[1760276873495,3.2078,3806.3,3806.2,0.47281]
[1760276873703,3.2078,3806.7,3806.6,0.47276]
[1760276873907,3.21032446,3806.7,3806.6,0.00195081]
[1760276874097,0.292,3806.5,3805.5,3.2078]
[1760276874297,1.1133,3805.8,3805.4,0.47291]
[1760276874502,0.4424,3805.5,3805.3,0.47291]
[1760276874698,6.42470277,3805.7,3805.6,0.47289]
[1760276875006,6.26913718,3805.8,3805.6,0.47550006]
[1760276875206,3.2078,3806.3,3805.7,1.1851]
[1760276875416,3.95744435,3805.7,3805.6,0.47550006]
[1760276875605,45.3944858,3805.7,3805.6,0.47550006]
[1760276875908,43.59770332,3805.7,3805.6,0.47550006]
[1760276876507,48.12406281,3805.7,3805.6,0.47550006]
[1760276877204,48.12406281,3805.7,3805.6,0.00261006]
[1760276878110,47.01076281,3805.7,3805.6,0.00261006]
[1760276878607,47.01076281,3805.7,3805.6,1.18771006]
[1760276878608,43.59770332,3805.7,3805.6,1.18771006]
[1760276878809,2.79770332,3805.7,3805.6,1.18771006]
[1760276879004,3.21032446,3806.7,3805.7,1.1851]
[1760276879203,4.32362446,3806.7,3806.6,0.47276]
[1760276879403,4.32362446,3806.7,3805.7,1.1851]
[1760276879600,3.2078,3806.1,3805.6,0.00261006]
[1760276879805,1.1133,3805.9,3805.7,0.47287]
[1760276880109,6.24602815,3806.0,3805.9,0.47285]
[1760276880308,7.38806697,3806.4,3806.3,0.4728]
[1760276880510,1.1133,3806.4,3806.3,0.4728]
[1760276880704,6.50507722,3806.4,3806.3,1.6579]
[1760276881007,2.42542802,3806.4,3806.3,1.6579]
[1760276881212,0.00252446,3806.7,3806.6,1.65786]
[1760276881609,3.04302248,3806.7,3806.6,0.47276]
[1760276881812,3.04302248,3806.7,3806.6,1.65786]
[1760276882004,43.84302248,3806.7,3806.6,1.65786]
[1760276882205,44.95632248,3806.7,3806.6,0.47276]
[1760276882404,43.84302248,3806.7,3806.6,0.47276]
[1760276882605,48.39908262,3806.7,3806.6,0.47276]
[1760276883406,48.39908262,3806.7,3806.1,2.36414]
[1760276883407,52.26368262,3806.7,3806.1,3.2078]
[1760276883708,52.26368262,3806.7,3805.5,2.38355]
[1760276883709,1.1354,3806.4,3805.5,2.38355]
[1760276884012,4.3432,3806.4,3805.5,2.38355]
[1760276884220,1.1354,3806.2,3806.1,0.47282]
[1760276884511,7.32885668,3806.2,3806.1,0.47282]
[1760276885321,41.93792446,3806.7,3806.6,0.47276]
[1760276885529,1.1354,3806.6,3806.4,0.47278]
[1760276885814,1.1354,3806.4,3805.6,0.00261006]
[1760276886122,0.4424,3806.0,3805.6,0.00261006]
[1760276886411,0.4424,3806.0,3805.3,0.47292]
[1760276886412,1.1354,3805.4,3805.3,0.47292]
[1760276886611,1.1354,3805.4,3804.6,1.2013]
[1760276886612,1.1354,3805.3,3804.6,3.2078]
[1760276886915,0.47291,3805.4,3805.1,0.47295]
[1760276886916,6.20321971,3805.2,3805.1,0.47295]
[1760276887113,7.33861971,3805.2,3805.1,0.47295]
[1760276887313,7.33861971,3805.2,3805.1,0.47531909]
[1760276887513,48.13861971,3805.2,3805.1,0.47531909]
[1760276887711,0.4655,3805.0,3804.6,3.2078]
[1760276887911,0.4655,3805.0,3804.6,0.47301]
[1760276887912,1.60838,3804.9,3804.6,0.47301]
[1760276888108,4.3432,3804.7,3804.4,0.47303]
[1760276888308,1.4274,3804.5,3804.4,0.47303]
[1760276888607,7.7145905,3804.5,3804.4,0.47303]
[1760276888809,7.7145905,3804.5,3804.4,0.47548098]
[1760276892110,40.8,3805.2,3805.1,1.67425]
[1760276892415,44.82195698,3805.2,3805.1,3.68075]
[1760276892818,1.1354,3805.1,3804.9,0.47297]
[1760276893027,1.1354,3805.1,3804.7,3.2078]
[1760276893028,1.1354,3805.1,3805.0,0.47295]
[1760276893314,7.47659039,3805.1,3805.0,0.47295]
[1760276896618,6.34119039,3805.1,3805.0,0.47295]
[1760276896816,40.8,3805.2,3805.1,1.2013]
[1760276897120,48.09381675,3805.2,3804.7,3.2078]
[1760276897421,0.292,3805.0,3804.3,3.2078]
[1760276897611,3.4998,3805.0,3804.3,3.2078]
[1760276897820,1.1354,3805.2,3805.1,0.47295]
[1760276898214,7.31419134,3805.2,3805.1,0.47295]
[1760276898423,48.11419134,3805.2,3805.1,0.47295]
[1760276900228,42.9776604,3805.2,3805.1,1.67425]
[1760276900624,42.4029204,3805.2,3805.1,6.67425]
[1760276900816,1.1354,3806.3,3806.2,0.47281]
[1760276901214,7.59453617,3806.3,3806.2,0.47281]
[1760276901716,48.39453617,3806.3,3806.2,0.47281]
[1760276908422,47.25913617,3806.3,3806.2,0.47281]
[1760276908628,48.39453617,3806.3,3806.2,0.47281]
[1760276911033,47.25913617,3806.3,3806.2,1.67411]
[1760276911626,40.8,3806.3,3806.2,1.67411]
[1760276912733,41.9467,3806.3,3806.2,0.47281]
[1760276912933,1.1467,3806.2,3806.1,3.68063]
[1760276913136,1.1467,3805.9,3805.1,4.39016]
[1760276913331,1.1467,3805.9,3805.8,0.47286]
[1760276913631,48.42746991,3805.9,3805.3,1.18232]
[1760276913826,47.28076991,3805.9,3805.3,1.18232]
[1760276914027,48.42746991,3805.9,3805.8,0.47286]
[1760276914831,47.28076991,3805.9,3805.8,1.66606]
[1760276916433,44.26326102,3805.9,3805.8,1.66606]
[1760276919331,48.21971876,3805.9,3805.8,0.47286]
[1760276920027,40.8,3805.9,3805.8,1.66606]
[1760276920228,1.14922446,3806.7,3805.8,5.0]
[1760276920436,1.14922446,3806.7,3806.6,0.47276]
[1760276920930,6.18097533,3806.7,3806.6,0.47276]
[1760276921134,6.18097533,3806.7,3806.6,1.66596]
[1760276921430,46.98097533,3806.7,3806.6,1.66596]
[1760276922037,3.2078,3807.3,3807.2,1.66589]
[1760276922231,3.2078,3807.7,3807.6,0.47264]
[1760276922431,3.2078,3808.2,3808.1,0.47258]
[1760276922727,0.2799,3807.5,3806.9,2.82301958]
[1760276922930,1.1467,3806.9,3806.8,0.47274]
[1760276923133,1.1467,3807.1,3807.0,0.47271]
[1760276923334,1.1493142,3807.1,3807.0,0.47271]
[1760276923525,48.12274425,3807.1,3807.0,0.47271]
[1760276931337,1.57873,3806.9,3805.9,4.38992]
[1760276931538,0.4636,3806.0,3805.6,2.35029958]
[1760276931734,5.25024,3806.0,3805.9,0.47285]
[1760276932036,6.13109066,3805.9,3805.8,1.64316]
[1760276932231,46.93109066,3806.0,3805.9,1.64315]
[1760276932434,46.93109066,3806.0,3805.9,4.85314643]
[1760276932435,40.8,3806.0,3805.9,4.85314643]
[1760276932632,47.02898299,3806.0,3805.9,4.85314643]
[1760276932938,47.02898299,3806.0,3805.9,7.20344601]
[1760276933134,48.13498299,3806.0,3805.9,4.85314643]
[1760276933435,48.13498299,3806.0,3805.9,3.68284643]
[1760276933628,48.13498299,3806.0,3805.9,0.47504643]
[1760276934836,52.27922299,3806.0,3805.9,0.00219643]
[1760276935341,48.13498299,3806.0,3805.9,0.47504643]
[1760276935941,48.13498299,3806.0,3805.9,3.68284643]
[1760276936139,47.02898299,3806.0,3805.9,4.85314643]
[1760276937140,48.13498299,3806.0,3805.9,3.68284643]
[1760276937935,42.9071983,3806.0,3805.9,9.85314643]
[1760276938142,1.106,3806.9,3806.8,1.64304]
[1760276938438,1.5696,3808.0,3807.0,2.10281]
[1760276938639,3.2078,3808.2,3808.1,0.47258]
[1760276938834,4.3138,3808.2,3808.1,0.47258]
[1760276939036,1.106,3807.8,3807.7,0.47262]
[1760276939336,45.1138,3808.2,3807.8,1.1703]
[1760276939540,45.1138,3808.2,3807.8,0.47261]
[1760276939541,1.106,3808.1,3807.8,0.47261]
[1760276939741,1.106,3807.8,3807.3,6.73273374]
[1760276939941,3.2078,3807.8,3807.6,0.47263]
[1760276940143,4.65414695,3807.7,3807.6,0.47263]
[1760276940543,3.54814695,3807.7,3807.4,0.47266]
[1760276940743,3.54814695,3807.7,3807.4,0.47265]
[1760276940937,1.106,3807.6,3807.5,0.47265]
[1760276941137,41.906,3807.6,3807.5,0.47265]
[1760276941438,1.106,3807.4,3807.2,0.47268]
[1760276941635,1.106,3807.4,3807.3,0.47267]
[1760276941831,1.106,3807.0,3806.4,3.2078]
[1760276942139,0.47277,3806.6,3806.3,2.35463374]
[1760276942342,1.106,3806.7,3806.5,0.47277]
[1760276942640,6.44792783,3806.6,3806.2,1.18204]
[1760276942845,5.51811507,3806.6,3806.5,2.11778]
[1760276943143,40.8,3807.6,3807.5,1.645]
[1760276943333,0.00286571,3808.2,3807.5,3.2078]
[1760276943645,2.93466286,3807.6,3807.5,7.67752611]
[1760276943944,1.1946,3808.0,3807.9,0.47259]
[1760276944333,48.2669366,3808.0,3807.9,0.47259]
[1760276944633,40.8,3808.0,3807.9,4.84589]
[1760276944833,40.8,3808.0,3807.9,9.84589]
[1760276945143,40.8,3808.0,3807.9,12.19796611]
[1760276945337,40.8,3808.0,3807.9,9.84589]
[1760276945940,1.1946,3809.4,3809.0,0.47246]
[1760276946144,1.1946,3809.4,3809.1,0.47245]
[1760276946344,7.39147617,3809.4,3809.1,0.47245]
[1760276947040,1.1946,3808.9,3808.3,1.1655]
[1760276947244,1.1946,3808.9,3808.8,0.47248]
[1760276947543,7.52263805,3808.9,3808.8,0.47248]
[1760276948348,1.1946,3808.8,3808.5,0.00223385]
[1760276948549,6.32803805,3808.9,3808.5,0.00223385]
[1760276948746,0.4371,3809.0,3807.7,3.53117801]
[1760276948747,0.47254,3808.4,3807.7,2.34963801]
[1760276949044,6.15089078,3808.8,3808.5,0.47252]
[1760276949238,6.15089078,3808.3,3807.9,1.1655]
[1760276949439,1.1946,3808.2,3808.1,0.47257]
[1760276949636,7.36031661,3808.7,3808.6,0.47252]
[1760276949839,0.00328975,3809.4,3808.6,0.47252]
[1760276949840,3.2078,3809.3,3808.6,1.18439561]
[1760276950141,43.73777598,3808.7,3808.6,1.64113561]
[1760276950344,40.8,3808.7,3808.6,1.64113561]
[1760276950547,48.27177517,3808.7,3808.6,0.00311561]
[1760276950844,48.27177517,3808.7,3808.6,5.61e-06]
[1760276951153,1.1946,3807.9,3807.3,1.1655]
[1760276951341,3.2078,3807.7,3807.6,0.47264]
[1760276951747,6.23951054,3807.7,3807.6,1.63814]
[1760276951946,43.55569674,3807.7,3807.6,1.64077117]
[1760276952645,40.8,3807.7,3807.6,1.64077117]
[1760276952845,40.8,3807.7,3807.6,6.64077117]
[1760276953051,43.70764379,3807.7,3807.6,1.64077117]
[1760276953243,2.90764379,3807.7,3807.6,6.64077117]
[1760276953449,1.1946,3808.6,3808.5,0.47253]
[1760276953845,48.34632714,3808.6,3808.5,0.47253]
[1760276954040,47.15172714,3808.6,3808.5,0.47253]
[1760276954240,47.15172714,3808.6,3808.5,1.63803]
[1760276954446,40.8,3808.6,3808.5,7.11753]
[1760276957452,47.04015303,3808.6,3808.4,1.63804]
[1760276957644,47.04015303,3808.6,3808.4,0.47254]
[1760276957850,1.1946,3808.5,3808.4,0.47254]
[1760276958049,0.4502,3808.5,3808.0,3.2078]
[1760276958252,0.4502,3808.5,3807.6,1.16813117]
[1760276958253,0.47257,3808.2,3807.8,0.47261]
[1760276958454,0.47257,3808.2,3807.6,0.00263117]
[1760276958455,1.66717,3808.2,3807.9,0.4726]
[1760276958656,1.1946,3808.0,3807.7,0.47262]
[1760276958855,1.1946,3808.0,3807.6,0.00263117]
[1760276958856,1.1946,3807.9,3807.6,0.00263117]
[1760276959052,6.28342899,3807.9,3807.6,0.00263117]
[1760276959250,1.1946,3807.7,3807.6,0.00263117]
[1760276959450,41.9946,3807.7,3807.6,0.00263117]
[1760276959650,48.18484633,3807.7,3807.6,0.00263117]
[1760276961655,1.1946,3807.1,3806.9,0.47271]
[1760276961960,0.47278,3806.5,3806.1,0.47282]
[1760276962159,0.47278,3806.5,3805.9,0.47285]
[1760276962160,1.1946,3806.1,3805.9,0.47285]
[1760276962352,0.47286,3805.9,3805.6,0.47288]
[1760276962555,1.1946,3805.8,3805.6,0.47605756]
[1760276962752,1.1946,3805.7,3805.6,0.00317756]
[1760276963056,7.49378135,3805.7,3805.6,0.00317756]
[1760276963256,12.49378135,3805.7,3805.6,0.00317756]
[1760276963452,0.47293,3805.3,3804.9,0.47296]
[1760276963756,4.4024,3805.0,3804.9,0.47296]
[1760276964357,51.41009145,3805.0,3804.9,0.47296]
[1760276964558,51.41009145,3805.0,3804.9,0.47505204]
[1760276965055,51.41009145,3805.0,3804.9,0.00209204]
[1760276965560,51.41009145,3805.0,3804.9,1.16759204]
[1760276965561,50.21549145,3805.0,3804.9,1.16759204]
[1760276965747,47.00769145,3805.0,3804.9,1.16759204]
[1760276965948,44.26133896,3805.0,3804.9,0.00209204]
[1760276966550,44.29716755,3805.0,3804.9,1.16759204]
[1760276967262,45.49176755,3805.0,3804.9,0.00209204]
[1760276967449,48.32342625,3805.0,3804.9,0.00209204]
[1760276968155,48.60332625,3805.0,3804.9,0.00209204]
[1760276969959,53.60332625,3805.0,3804.9,0.00209204]
[1760276970160,1.1946,3804.8,3803.6,3.2078]
[1760276970363,0.47307,3804.2,3803.6,3.2078]
[1760276970658,0.47311,3803.9,3803.2,3.2078]
[1760276970959,1.1946,3803.6,3803.3,1.1655]
[1760276971161,0.03582859,3803.5,3803.3,0.00188156]
[1760276971357,1.1946,3803.4,3803.3,0.47505156]
[1760276971756,4.07071178,3803.4,3803.3,0.00188156]
[1760276971957,44.87071178,3803.4,3803.3,0.00188156]
[1760276972260,48.29473672,3803.4,3803.3,0.00188156]
[1760276974461,43.71194037,3803.4,3803.3,1.10608156]
[1760276974661,40.83582859,3803.4,3803.3,1.10608156]
[1760276974961,40.83582859,3803.4,3803.3,6.10608156]
[1760276975153,40.83582859,3803.4,3803.3,9.78705156]
[1760276975353,40.83582859,3803.4,3803.3,4.78705156]
[1760276975865,40.83582859,3803.4,3803.3,1.57925156]
[1760276976060,48.40596958,3803.4,3803.3,0.00188156]
[1760276976266,1.1708,3803.3,3802.5,3.2078]
[1760276976466,1.1708,3803.3,3802.7,0.47325]
[1760276976663,1.1708,3802.8,3802.2,0.47331]
[1760276976859,1.1708,3802.8,3802.4,0.47328]
[1760276977055,6.47021925,3802.7,3802.1,3.2078]
[1760276977260,1.1708,3802.3,3802.1,3.2078]
[1760276977466,40.8,3802.2,3802.1,0.47332]
[1760276977667,47.26060652,3802.2,3801.9,0.47335]
[1760276977859,47.26060652,3802.2,3801.6,3.2078]
[1760276977860,1.1708,3802.1,3801.6,3.2078]
[1760276978057,1.1708,3802.0,3801.8,0.47336]
[1760276978258,1.20423747,3801.9,3801.8,0.47580046]
[1760276978459,4.66974477,3801.9,3801.8,0.47580046]
[1760276978653,7.53792232,3801.9,3801.8,0.47580046]
[1760276979267,7.53792232,3801.9,3801.8,0.00244046]
[1760276981463,0.03343747,3801.9,3801.8,1.10664046]
[1760276981668,40.8,3802.2,3802.1,0.47332]
[1760276981864,40.8,3802.2,3802.1,1.57752]
[1760276984470,40.8,3802.2,3802.1,1.1042]
[1760276984667,40.8,3802.2,3802.1,0.47332]
[1760276984668,44.98483343,3802.2,3802.1,0.47332]
[1760276985462,43.85303343,3802.2,3802.1,0.47332]
[1760276985664,40.8,3802.2,3802.1,6.59882]
[1760276985865,0.00325481,3802.8,3802.7,1.59875]
[1760276986261,0.00325481,3802.8,3802.5,3.6521]
[1760276986262,1.1318,3802.7,3802.5,3.2078]
[1760276986463,1.60515,3801.9,3801.1,3.2078]
[1760276986669,1.1318,3801.8,3800.5,0.4443]
[1760276986868,1.1318,3801.1,3800.5,0.47351]
[1760276987069,40.8,3801.0,3800.4,1.1255]
[1760276987269,47.24190479,3801.0,3800.7,0.47349]
[1760276987464,47.24190479,3801.0,3800.7,0.4735]
[1760276987766,1.1318,3800.8,3800.7,0.00198804]
[1760276988272,1.1318,3800.8,3799.5,0.47364]
[1760276988273,1.60534,3800.4,3799.5,0.47364]
[1760276988465,1.1318,3799.7,3799.5,0.47364]
[1760276988660,40.8,3799.6,3799.5,0.47364]
[1760276988864,40.8,3799.6,3799.0,0.4443]
[1760276988865,48.23972647,3799.6,3799.4,0.47365]
[1760276989364,43.62969887,3799.6,3799.5,1.1255]
[1760276989566,4.59569815,3799.5,3799.3,0.47367]
[1760276989765,4.59569815,3799.5,3799.3,1.59917]
[1760276990071,4.59569815,3799.5,3799.2,0.26320984]
[1760276990072,40.80327787,3799.6,3799.5,2.04345]
[1760276990768,40.80327787,3799.6,3799.5,10.25125]
[1760276991066,0.00327787,3799.6,3799.5,10.25125]
[1760276991274,3.2078,3800.7,3800.6,0.47351]
[1760276991565,4.3396,3800.7,3800.6,0.47351]
[1760276991766,9.55039074,3800.7,3800.4,0.47353]
[1760276991962,1.1318,3800.6,3800.4,0.47353]
[1760276992163,1.1318,3800.4,3799.7,1.1255]
[1760276992363,40.8,3800.5,3799.1,1.1255]
[1760276992364,1.1318,3800.0,3799.1,1.1255]
[1760276992665,1.1318,3800.0,3799.7,0.00327788]
[1760276992666,6.33519883,3799.9,3799.7,0.00327788]
[1760276992973,6.33519883,3799.9,3799.7,1.12877788]
[1760276993169,40.8,3800.5,3799.8,1.1255]
[1760276993367,3.2078,3800.2,3799.7,0.00327788]
[1760276993568,7.28983315,3800.0,3799.9,0.47359]
[1760276993764,3.64604194,3800.1,3799.9,1.59909]
[1760276993971,3.2078,3800.2,3800.1,0.47357]
[1760276994371,6.43174965,3800.0,3799.9,0.47359]
[1760276994575,6.43174965,3800.1,3799.7,0.00327788]
[1760276994775,1.1318,3799.9,3799.7,0.00327788]
[1760276995071,1.1318,3799.9,3799.7,0.47689788]
[1760276995270,6.25831422,3799.8,3799.7,1.60239788]
[1760276995466,3.2078,3800.2,3800.1,0.47357]
[1760276995672,3.21108571,3800.6,3800.5,1.59902]
[1760276995872,40.80328571,3800.6,3800.5,2.04332]
[1760276996175,0.00328571,3800.6,3800.5,7.04332]
[1760276996379,3.2078,3801.4,3800.6,1.18378]
[1760276996581,1.1318,3801.8,3801.3,0.47342]
[1760276996776,40.8,3801.9,3800.5,1.62809]
[1760276996777,6.4216578,3801.4,3800.9,0.47347]
[1760276996976,3.2078,3801.6,3800.7,1.1255]
[1760276997277,2.78543649,3801.3,3801.0,1.1255]
[1760276997484,3.2078,3801.2,3801.1,0.47345]
[1760276997876,2.78543649,3801.2,3801.1,6.59895]
[1760276998084,0.0019818,3801.3,3801.1,0.47345]
[1760276998276,0.0019818,3801.3,3801.2,1.1255]
[1760276998875,0.0019818,3801.3,3801.2,9.3333]
[1760276999270,40.8,3801.9,3801.3,1.18356]
[1760276999582,40.8,3801.9,3801.8,1.59886]
[1760277000478,40.80209485,3801.9,3801.8,1.59886]
[1760277000680,47.23722413,3801.9,3801.6,0.47338]
[1760277000880,4.3396,3801.7,3801.6,0.47338]
[1760277001078,1.1318,3801.6,3801.5,0.47339]
[1760277001283,1.1318,3801.6,3800.7,4.39152]
[1760277001284,1.1318,3801.6,3800.8,1.1255]
[1760277001577,1.1318,3801.6,3800.4,1.1255]
[1760277001578,1.1318,3801.1,3800.4,1.1255]
[1760277001782,6.4120243,3801.6,3800.4,1.1255]
[1760277001783,1.1318,3800.7,3800.4,1.1255]
[1760277001981,1.1318,3800.7,3800.6,0.4735]
[1760277002183,3.2078,3800.8,3800.7,1.1255]
[1760277002376,3.2078,3801.6,3801.0,1.1255]
[1760277002577,41.9025,3801.5,3801.3,0.47342]
[1760277002778,47.03008885,3801.5,3801.3,0.47342]
[1760277002972,43.55475402,3801.5,3801.4,1.18]
[1760277003179,3.2078,3801.6,3801.5,2.111]
[1760277003575,0.00209485,3801.9,3801.8,1.65336]
[1760277004179,44.65206262,3801.9,3801.8,0.47336]
[1760277004379,51.95429655,3801.9,3801.4,0.47341]
[1760277004678,1.1025,3801.4,3801.3,0.47342]
[1760277004977,4.11039118,3801.4,3801.3,0.47342]
[1760277005179,1.1025,3801.3,3800.5,1.6243]
[1760277005375,3.2078,3800.8,3800.7,0.47349]
[1760277005772,6.16068053,3800.8,3800.7,1.65349]
[1760277005976,6.16068053,3800.8,3800.7,0.47349]
[1760277006187,6.16068053,3800.8,3800.7,0.4735]
[1760277006389,3.2078,3801.2,3801.1,0.47345]
[1760277006884,9.19463465,3801.2,3801.1,0.47345]
[1760277007278,9.19463465,3801.2,3800.7,1.18]
[1760277007475,4.3103,3800.8,3800.7,0.4735]
[1760277007879,7.1027188,3800.8,3800.7,0.4735]
[1760277008289,6.0002188,3800.8,3800.7,0.4735]
[1760277008490,6.0002188,3800.8,3800.7,1.6535]
[1760277008691,6.0002188,3800.8,3800.7,0.4735]
[1760277009988,3.2078,3800.8,3800.7,1.6535]
[1760277010692,7.19067636,3800.8,3800.7,0.4735]
[1760277012087,47.99067636,3800.8,3800.7,0.4735]
[1760277012288,47.99067636,3800.8,3800.2,1.18]
[1760277012486,1.1025,3800.7,3800.6,0.47346]
[1760277012697,40.8,3800.8,3800.7,1.65345]
[1760277012994,3.2078,3801.3,3801.2,0.47339]
[1760277013200,0.00209485,3801.9,3801.6,1.18]
[1760277013502,0.00209485,3801.9,3801.8,1.65331]
[1760277014000,40.80209485,3801.9,3801.8,6.65331]
[1760277014200,3.2078,3802.4,3802.3,1.65325]
[1760277015206,44.01108411,3802.4,3802.3,1.65325]
[1760277015701,40.80328411,3802.4,3802.3,1.65325]
[1760277020705,40.80328411,3802.4,3802.3,9.86105]
[1760277020898,40.80328411,3802.4,3802.3,4.86105]
[1760277021299,40.80328411,3802.4,3802.3,1.65325]
[1760277023511,1.1025,3802.3,3801.8,0.4733]
[1760277023805,55.3978235,3802.4,3801.2,1.18346]
[1760277023806,1.1025,3801.8,3801.2,0.47339]
[1760277024102,4.3103,3801.5,3801.4,0.47336]
[1760277024302,45.1103,3801.5,3801.0,0.4576]
[1760277024500,45.1103,3801.5,3801.4,1.65336]
[1760277024700,44.0078,3801.5,3801.4,1.65336]
[1760277025101,3.2078,3801.9,3801.8,0.47331]
[1760277025304,0.4342,3804.0,3802.3,1.65325]
[1760277025305,3.2078,3802.6,3802.3,1.65325]
[1760277025602,41.90578411,3802.4,3802.3,1.65325]
[1760277025798,44.79155207,3802.4,3802.3,1.65325]
[1760277026002,43.68905207,3802.4,3802.3,1.65325]
[1760277026510,44.79155207,3802.4,3802.3,0.47325]
[1760277026699,43.68905207,3802.4,3802.3,1.65325]
[1760277029507,43.68905207,3802.4,3802.3,4.86105]
[1760277029805,4.11e-06,3802.4,3802.3,9.86105]
[1760277030111,1.1025,3803.7,3803.6,0.47309]
[1760277030303,40.8,3803.7,3803.6,1.65309]
[1760277030506,47.11995866,3803.7,3803.6,1.65309]
[1760277030710,44.16761324,3803.7,3803.6,1.65309]
[1760277031006,44.17038856,3803.7,3803.6,1.65515876]
[1760277032804,38.11348856,3803.7,3803.6,0.47515876]
[1760277033010,1.1421,3805.9,3805.2,1.18223]
[1760277033200,3.2078,3806.1,3806.0,0.47279]
[1760277033400,9.66,3807.2,3806.0,0.47279]
[1760277033401,1.1421,3806.9,3806.7,0.4727]
[1760277033610,1.1421,3806.9,3806.8,0.47269]
[1760277033905,1.1421,3807.1,3807.0,0.47265]
[1760277034111,1.14469891,3807.1,3807.0,0.47265]
[1760277034505,1.1421,3806.9,3806.8,0.00223572]
[1760277034906,1.1421,3806.9,3806.8,0.47492572]
[1760277035711,41.9421,3806.9,3806.8,0.47492572]
[1760277036814,44.74894095,3806.9,3806.8,0.47492572]
[1760277037414,43.60684095,3806.9,3806.8,0.47492572]
[1760277037617,40.8,3806.9,3806.8,0.79362572]
[1760277038217,40.8,3806.9,3806.8,0.47492572]
[1760277039122,0.00259891,3807.1,3807.0,0.47267]
[1760277039418,0.00259891,3807.1,3807.0,0.79137]
[1760277040217,3.6413,3809.5,3807.8,11.81404]
[1760277040523,2.93534607,3809.4,3808.6,1.49988]
[1760277040825,40.8,3809.0,3808.9,0.47243]
[1760277041220,0.00189411,3809.0,3808.9,0.79113]
[1760277042325,1.1421,3810.7,3810.6,0.47222]
[1760277042623,6.0566452,3810.9,3810.0,3.2078]
[1760277042923,1.1421,3810.8,3810.7,0.4722]
[1760277043120,44.0078,3810.9,3810.7,0.4722]
[1760277043320,0.0024159,3810.9,3810.8,0.4391]
[1760277043520,1.1995,3811.8,3811.6,0.47208]
[1760277043719,3.2078,3811.9,3811.6,0.47208]
[1760277043914,0.4594,3811.5,3810.7,0.00300951]
[1760277044122,4.4073,3811.0,3810.7,0.00300951]
[1760277044422,4.4073,3811.0,3810.8,0.4722]
[1760277044626,4.41025808,3811.0,3810.8,0.4722]
[1760277045217,0.00295808,3811.0,3810.8,0.4722]
[1760277045923,1.1995,3810.9,3810.7,0.00300951]
[1760277046122,1.1995,3810.8,3810.7,0.00300951]
[1760277046428,0.00295808,3811.0,3810.9,0.47218]
[1760277046840,40.80295808,3811.0,3810.9,0.47218]
[1760277047128,42.00245808,3811.0,3810.7,0.47520951]
[1760277047324,1.1995,3810.9,3810.7,0.47520951]
[1760277047519,4.13935882,3810.9,3810.8,0.47219]
[1760277047725,40.80295808,3811.0,3810.8,0.47219]
[1760277048329,40.80295808,3811.0,3810.7,0.00300951]
[1760277048330,1.1995,3810.8,3810.7,0.00300951]
[1760277048830,12.16483959,3810.8,3810.7,0.00300951]
[1760277049028,1.1995,3810.8,3810.7,0.00300951]
[1760277049425,3.99937897,3810.8,3810.7,0.00300951]
[1760277049622,11.28305756,3810.8,3809.5,3.2078]
[1760277049826,1.1995,3810.4,3809.6,1.18087]
[1760277050130,2.79987897,3810.3,3809.5,3.2078]
[1760277050426,2.79987897,3810.3,3810.1,0.47228]
[1760277050624,1.1995,3810.9,3810.7,0.4722]
[1760277050827,3.2078,3810.9,3810.7,0.00334588]
[1760277051135,1.1995,3810.8,3810.7,0.00334588]
[1760277051634,12.6578058,3810.8,3810.7,0.00334588]
[1760277051833,0.4594,3810.0,3809.4,3.2078]
[1760277052127,0.4594,3810.0,3809.2,1.18098]
[1760277052128,1.6589,3810.0,3809.8,0.47231]
[1760277052333,2.74887917,3809.9,3809.0,4.38884]
[1760277052531,1.1995,3809.8,3809.6,0.47234]
[1760277052830,0.4594,3810.5,3810.4,0.47224]
[1760277053135,3.2078,3810.7,3810.5,0.47223]
[1760277053136,4.4073,3810.7,3810.5,0.47223]
[1760277053429,40.8,3810.6,3810.5,0.47223]
[1760277053633,41.9995,3810.6,3810.5,0.47223]
[1760277054231,1.1995,3810.4,3809.5,1.18087]
[1760277054429,4.4073,3810.2,3810.1,0.47228]